Cogmind - Beta 13 @@@ ROGUE MODE // 2024.03.28 @ 21:07:16 Player: Cmdr.Laserstrahl Result: Destroyed by G-34 Mercenary with Small Laser Performance ------------- Evolutions (0) 0 Regions Visited (1) 200 Robots Destroyed (11) 55 Value Destroyed (217) 217 Prototype IDs (0) 0 Alien Tech Used (0) 0 Bonus (0) 0 TOTAL SCORE: 472 Bonus ------- None Cogmind --------- Core Integrity 0/250 Matter 290/300 Energy 100/100 System Corruption 0% Temperature Cool (6) Movement Rolling (100) Location -10/Materials Parts ------- > --- POWER (1) -------- (None) > --- PROPULSION (2) --- Compact Wheel > --- UTILITY (2) ------ Medium Storage Unit Sensor Array > --- WEAPON (2) ------- Hammer Hammer > --- INVENTORY (10) --- Ion Engine Light Treads Light Treads Compact Wheel Compact Wheel Compact Wheel Compact Wheel Heat Sink Peak State ------------ > --- POWER ------------ Ion Engine > --- PROPULSION ------- Wheel Compact Wheel > --- UTILITY ---------- Medium Storage Unit Sensor Array > --- WEAPON ----------- Small Laser Assault Rifle > --- INVENTORY -------- Ion Engine Light Treads Light Treads Compact Wheel Compact Wheel Compact Wheel Compact Wheel Heat Sink Hammer Hammer [Rating: 8] Favorites ----------- Power Ion Engine Engine Ion Engine Propulsion Compact Wheel Wheel Compact Wheel Utility Small Storage Unit Device Sensor Array Storage Small Storage Unit Weapon Light Assault Rifle Energy Gun Small Laser Ballistic Gun Light Assault Rifle Impact Weapon Hammer Build | -11 -10 ------- Run | Yrd Mat Slots Evolved . | . . Power . | . . Propulsion . | . . Utility . | . . Weapon . | . . Parts Attached 14 | 6 8 Power 1 | 1 . Engine 1 | 1 . Core . | . . Reactor . | . . Propulsion 3 | 2 1 Treads . | . . Leg . | . . Wheel 3 | 2 1 Hover . | . . Flight . | . . Utility 4 | 1 3 Device 2 | . 2 Storage 2 | 1 1 Processor . | . . Hackware . | . . Protection . | . . Artifact . | . . Weapon 6 | 2 4 Energy Gun 1 | . 1 Energy Cannon . | . . Ballistic Gun 3 | 2 1 Ballistic Cannon . | . . Launcher . | . . Special Weapon . | . . Impact Weapon 2 | . 2 Slashing Weapon . | . . Piercing Weapon . | . . Special Melee Weapon . | . . Unidentified Prototypes . | . . Parts Lost 4 | . 4 Power 1 | . 1 Propulsion 1 | . 1 Utility . | . . Weapon 2 | . 2 Highest Loss Streak 4 | . 4 To Critical Strikes . | . . Average Slot Usage (%) 88 | . 88 Engine 11 | . 11 Wheel 26 | . 26 Device 8 | . 8 Storage 14 | . 14 Energy Gun 4 | . 4 Ballistic Gun 14 | . 14 Impact Weapon 7 | . 7 Naked Turns . | . . Heaviest Build 19 | 12 19 Greatest Support 32 | 32 32 Greatest Overweight (x) . | . . Average Overweight (x) . | . . Largest Inventory Capacity 10 | 8 10 Average Capacity 8 | 7 9 Most Carried 10 | 6 10 Average Carried 7 | 2 8 Final Capacity 10 | 8 10 Final Carried 8 | 6 8 Class Distribution -------------------- 85% | Mutant 14% | Scavenger-Mutant Dominant Class ---------------- Mutant | -10/Materials Resources | -11 -10 ----------- Run | Yrd Mat Matter Collected 409 | 255 154 Remotely . | . . Salvage Created 392 | 67 325 Parts 21 | 3 18 Haulers Intercepted 1 | . 1 Recyclers Shooed 2 | . 2 Parts Field Recycled . | . . Retrieved Matter . | . . Parts Self-Destructed . | . . Prevented . | . . Kills | -11 -10 ------- Run | Yrd Mat Combat Hostiles Destroyed 7 | . 7 Melee 3 | . 3 Guns 3 | . 3 Classes Destroyed 6 | 1 5 Worker 1 | . 1 Hauler 1 | . 1 Recycler 1 | 1 . Watcher 1 | . 1 Swarmer 3 | . 3 Grunt 4 | . 4 Best Kill Streak 2 | 1 2 Combat Bots Only 2 | . 2 Max Kills in Single Turn 1 | 1 1 Gunslinging . | . . Exploded . | . . Melee 1 | . 1 Uniques/NPCs Destroyed . | . . Combat | -11 -10 -------- Run | Yrd Mat Hostile Shots Fired 75 | . 75 Missed 16 | . 16 Damage Taken 650 | . 650 Core 252 | . 252 Absorbed by Shields . | . . Core Remaining (%) 100 | 100 . Volleys Fired 37 | 2 35 Largest 2 | 2 2 Hottest 60 | 40 60 Shots Fired 73 | 4 69 Gun 73 | 4 69 Cannon . | . . Launcher . | . . Special . | . . Kinetic 56 | 4 52 Thermal 17 | . 17 Explosive . | . . Electromagnetic . | . . Robot Hit Streak 13 | 2 13 Robot Miss Streak 3 | 1 3 Penetration Max . | . . Secondary Targets . | . . Shots Hit Robots 69 | 3 66 Core Hits 21 | 2 19 Critical Kills 1 | . 1 Critical Parts Destroyed 1 | . 1 Critical Strikes 2 | . 2 Destroy 1 | . 1 Smash 1 | . 1 Melee Attacks 29 | . 29 Impact 29 | . 29 Slashing . | . . Piercing . | . . Sneak Attacks 1 | . 1 Combat Hostiles . | . . Follow-up Attacks 1 | . 1 Damage Inflicted 1016 | 22 994 Guns 508 | 22 486 Cannons . | . . Explosions . | . . Melee 508 | . 508 Ramming . | . . Kinetic 395 | 22 373 Thermal 113 | . 113 Explosive . | . . Electromagnetic . | . . Impact 508 | . 508 Slashing . | . . Piercing . | . . Highest Corruption . | . . Average Corruption . | . . Corruption Purged . | . . Corruption Blocked . | . . Overload Shots . | . . Overflow Damage 84 | . 84 Projectiles . | . . Explosions . | . . Melee 84 | . 84 Knockbacks 2 | . 2 Impact 2 | . 2 Kinetic . | . . Secondary . | . . Self-Inflicted Damage . | . . Shots . | . . Rammed . | . . Targets Rammed . | . . Kicked . | . . Crushed . | . . Highest Temperature 78 | . 78 Average Temperature 25 | . 25 Received Heat Transfer 264 | . 264 Siege Activations . | . . Robots Corrupted . | . . Combat Hostiles . | . . Parts Fried 1 | . 1 Impact Corruptions 5 | . 5 Robots Melted . | . . Combat Hostiles . | . . Parts Melted . | . . Heat Transferred 250 | . 250 Parts Sabotaged . | . . Parts Stolen . | . . Parts Stripped . | . . Power Chain Reactions . | . . Alert | -11 -10 ------- Run | Yrd Mat Peak Influence 182 | 5 182 Initial 3 | . 3 Average 60 | 1 73 Maximum Alert Level . | . . Low Security (%) 100 | 100 100 Level 1 . | . . Level 2 . | . . Level 3 . | . . Level 4 . | . . Level 5 . | . . High Security . | . . Max Security . | . . Squads Dispatched 1 | . 1 Investigation . | . . Extermination . | . . Reinforcement 1 | . 1 Assault . | . . Garrison . | . . Intercept . | . . Searches Triggered . | . . Construction Impeded . | . . Haulers Reinforced . | . . Active Scanning Responses . | . . Cargo Convoy Interrupts . | . . Stealth | -11 -10 --------- Run | Yrd Mat Distress Signals 2 | . 2 Communications Jammed . | . . Distress Signals . | . . Times Spotted 12 | . 12 Peak Tracking Total 7 | . 7 Tactical Retreats . | . . Traps | -11 -10 ------- Run | Yrd Mat Traps Triggered . | . . Indirectly . | . . Trap Hack Attempts . | . . Triggered . | . . Disarmed . | . . Reprogrammed . | . . Reused . | . . Traps Extracted . | . . Installed . | . . Triggered . | . . Machines | -11 -10 ---------- Run | Yrd Mat Machines Disabled . | . . Max in Single Turn . | . . Machines Repaired . | . . Machines Dismantled . | . . Machines Sabotaged . | . . Overloaded Fab Kills . | . . Hacking | -11 -10 --------- Run | Yrd Mat Machines Accessed . | . . Terminals . | . . Fabricators . | . . Repair Stations . | . . Recycling Units . | . . Scanalyzers . | . . Garrison Access . | . . Total Hacks . | . . Successful . | . . Failed . | . . Catastrophic . | . . Database Lockouts . | . . Manual . | . . Terminals . | . . Fabricators . | . . Repair Stations . | . . Recycling Units . | . . Scanalyzers . | . . Garrison Access . | . . Terminal Hacks . | . . Fabricator Hacks . | . . Repair Station Hacks . | . . Recycling Unit Hacks . | . . Scanalyzer . | . . Garrison Access Hacks . | . . Unauthorized Hacks . | . . Terminals . | . . Fabricators . | . . Repair Stations . | . . Recycling Units . | . . Scanalyzers . | . . Garrison Access . | . . Data Cores Recovered . | . . Used . | . . Hacking Detections . | . . Full Trace Events . | . . Feedback Events . | . . Feedback Blocked . | . . Robot Schematics Acquired . | . . Robots Built . | . . Authchips . | . . Time . | . . Total Robot Build Rating . | . . Part Schematics Acquired . | . . Parts Built . | . . Authchips . | . . Time . | . . Total Part Build Rating . | . . Parts Repaired . | . . Time . | . . Parts Recycled . | . . Recycled Matter . | . . Retrieved Matter . | . . Retrieved Components . | . . Parts Scanalyzed . | . . Part Schematics Acquired . | . . Parts Damaged . | . . Bothacking | -11 -10 ------------ Run | Yrd Mat Used RIF Installer . | . . Robots Hacked . | . . Non-combat . | . . Combat . | . . Robot Hacks Applied . | . . Relay Couplers Released . | . . Fabnet Peak Effective % . | . . Robots Rewired . | . . Allies Hacked . | . . Hacks Repelled . | . . Allies | -11 -10 -------- Run | Yrd Mat Total Allies . | . . Largest Group . | . . Highest-Rated Group . | . . Highest-Rated Ally . | . . Total Orders . | . . Ally Attacks . | . . Total Damage . | . . Kills . | . . Allies Corrupted . | . . Allies Melted . | . . Intel | -11 -10 ------- Run | Yrd Mat Robot Analysis Total . | . . Derelict Logs Recovered . | . . Drone Launches . | . . Drone Recoveries . | . . Exploration | -11 -10 ------------- Run | Yrd Mat Turns Passed 365 | 66 299 Spaces Moved 156 | 45 111 Core 3 | 3 . Treads . | . . Legs . | . . Wheels 153 | 42 111 Hover . | . . Flight . | . . Fastest Speed 50 | 50 90 Average Speed 94 | 96 93 Slowest Speed 100 | 100 100 Overloaded Moves . | . . Propulsion Burnouts . | . . Robots Hopped . | . . Cave-ins Triggered . | . . Exploration Rate (%) 13 | 4 23 Regions Visited 1 Branch Regions . Pre-discovered Areas . | . . Known Exits Taken . | . . Unknown Exits Taken 1 | 1 . Scrap Searched . | . . Spaces Dug . | . . Terrain Destroyed . | . . Melee . | . . Projectile . | . . AOE . | . . Terrain Rammed . | . . Walls Destroyed . | . . Machines Disabled . | . . Actions | -11 -10 --------- Run | Yrd Mat Total 261 | 64 197 Wait 4 | . 4 Move 155 | 44 111 Hop . | . . Pick Up 18 | 12 6 Fast Attach 3 | . 3 Attach 8 | 6 2 Detach . | . . Swap 3 | . 3 Drop 6 | . 6 Fire 37 | 2 35 Melee 27 | . 27 Ram . | . . Kick . | . . Crush . | . . Escape Stasis . | . . Rewire . | . . Trap . | . . Miscellaneous . | . . Route ------- -11/Scrapyard -10/Materials History --------- Turn | Location | Event 17 | -11/Scrapyard | Discovered new exit (range 16) 67 | -11/Scrapyard | Entered Materials 303 | -10/Materials | Core integrity fell below 50% 344 | -10/Materials | Core integrity fell below 20% 361 | -10/Materials | Lost 4 parts (1p1n2w) 366 | -10/Materials | Destroyed by G-34 Mercenary with Small Laser Last Messages --------------- 00305_ S-10 Pest system corrupted by crushing effect. 00305_ Hammer follow-up attack on S-10 Pest. 00305_ S-10 Pest destroyed. 00322_ Destroyed Flight Unit. 00322_ S-10 Pest system corrupted by crushing effect. 00324_ R-06 Scavenger collects Lgt. Ion Engine. 00327_ R-06 Scavenger collects Corrupted Lgt. Assault Rifle. 00328_ Sneak attack on R-06 Scavenger. 00330_ Wheel destroyed. 00336_ Destroyed Lgt. Ion Engine. 00336_ S-10 Pest system corrupted by crushing effect. 00337_ S-10 Pest system terminally corrupted. 00337_ Flight Unit fried. 00341_ G-34 Mercenary suffers critical hit (Smash). 00341_ Destroyed Heat Sink. 00341_ G-34 Mercenary system corrupted by crushing effect. 00341_ G-34 Mercenary knocked back. 00346_ M-13 Machinist fits Backup Plating I on G-34 Mercenary. 00350_ G-47 Trooper destroyed. 00352_ G-34 Mercenary knocked back. Map ----- +----------------------------------------------------+ | ?????????????????????????????????????????????????? | | ?????????????????????????????????????????????????? | | ?????????????????????????????????????????????????? | | ?????????????????????????????????????????????????? | | ??????????????? ?????????????????????????????????? | | ?????????????? ????????????????????????????????? | | ??????????????? ##########??????????????????????? | | ?????????????# #?????????? ?????????? | | ?????????????# #?????????# #????????? | | ?????????????# """ """ #?????????# #????????? | | ?????????????# """ """ ########### #????????? | | ?????????????# """ """ ## # ######???? | | ?????????????# ## # # ####? | | ?????????????# ## # # ?? | | ?????????????# ^""" """ ## # # ??? | | ?????????????# """ """ ## // # # #???? | | ??????#??????# """ """ ## / # #????? | | ??????# ?????# ## # #????? | | ??????? ???## ^ =! ## # #????? | | ?? ####+### ^ """??""" ## # #????? | | ??? """ R" #######+### #????? | | ???? ! """ """ % #????? | | ??????? """" %=! ? #????? | | ??????? """" *%= %% ? #????? | | ??????? """" ##########g######+####### ##????? | | ???? ! #?????# @=% # ## #?????? | | #?????#""""" # ## #?????? | | ?###T######## #?????#""""" # """ ## #?????? | | ????????????# #?????#""""" # """ ## #?????? | | ????????????# #?????#""""" # """ ## #?????? | | ????????????# #?????#""""" # """ ## #?????? | | ????????????# #??????""""" # """ ## #?????? | | ????????????# ?#???????"""" # ?? ## #?????? | | ????????????# ????????? # ????? ## #?????? | | ????????????# ??????????###### ???????# #?????? | | ????????????# ???????????????##???????? ??????? | | ???????????? ????????????????????????? ??????? | | ???????????? ????????????????????????? ??????? | | ???????????? ?????????????????????????????????? | | ????????????? ?????????????????????????????????? | | ?????????????????????????????????????????????????? | | ?????????????????????????????????????????????????? | | ?????????????????????????????????????????????????? | | ?????????????????????????????????????????????????? | | ?????????????????????????????????????????????????? | | ?????????????????????????????????????????????????? | | ?????????????????????????????????????????????????? | | ?????????????????????????????????????????????????? | | ?????????????????????????????????????????????????? | | ?????????????????????????????????????????????????? | +----------------------------------------------------+ Best States ------------- Heat Dissipation 35 Energy Generation 10 Energy Capacity 250 Matter Stores 300 Matter Capacity 300 Sight Range 16 Robot Scan Range 14 Terrain Scan Density 10 Evasion (%) 42 Item Schematics ----------------- None Robot Schematics ------------------ None Fabricated ------------ Nothing Alien Tech Used ----------------- None Achievements -------------- None Challenges ------------ None Game ------ Seed BehemothTargetActivator Manual? 0 Play Time 00:07:35 Cumulative 187.3 hours Start 2024.03.28 @ 21:01:07 End 2024.03.28 @ 21:07:16 Sessions 1 Manual Loads 0 Difficulty Rogue Special Mode None Game No. 89 Rogue 86 Adventurer 3 Explorer 0 Win Type - Total 0 Types 0/0/0/0/0/0/0/0/0 Lore% 25 Gallery% 47 Achievement% 32 Wizard Run 0 Options --------- Layout 0 ASCII 0 Keyboard 0 Movement Mouse Keybinds 0 Fullscreen 2 Font 18/SmallcapsGlow Map View 76x50 Zoom Use 0% Tactical HUD 1 Map Filters NONE Filters NONE Steam 1 RUN: 1549d5c8-f705-443a-bf28-69b9f67c7d14